fUST/lending_fUST_20241003
["ID","MTS","AMOUNT","RATE_DAILY","PERIOD"]
[339745958,1727931046593,-517.72,0.00013698,2]
[339745959,1727931046603,-230.45779496,0.00013698,2]
[339745960,1727931046613,-500.0,0.00013698,2]
[339745961,1727931046623,-500.0,0.00013698,2]
[339745962,1727931046633,-501.00887923,0.00013698,2]
[339745963,1727931046643,-500.44387226,0.00013698,2]
[339745964,1727931046657,-500.0,0.00013698,2]
[339745965,1727931046669,-500.0,0.00013698,2]
[339745966,1727931046680,-500.0,0.00013698,2]
[339745967,1727931046691,-562.54574659,0.00013698,2]
[339745968,1727931046702,-500.0,0.00013698,2]
[339745969,1727931046712,-500.0,0.00013698,2]
[339745970,1727931046724,-500.0,0.00013698,2]
[339745971,1727931046735,-500.0,0.00013698,2]
[339745972,1727931046746,-500.0,0.00013698,2]
[339745973,1727931046759,-780.8,0.00013698,2]
[339745974,1727931046770,-500.0,0.00013698,2]
[339745975,1727931046781,-500.0,0.00013698,2]
[339745976,1727931046793,-209.46159855,0.00013698,2]
[339745977,1727931046805,-500.35684235,0.00013698,2]
[339745978,1727931046816,-500.0,0.00013698,2]
[339745979,1727931046827,-500.55936233,0.00013698,2]
[339745980,1727931046838,-500.0,0.00013698,2]
[339745981,1727931046850,-500.0,0.00013698,2]
[339745982,1727931046865,-500.0,0.00013698,2]
[339745983,1727931046875,-500.0,0.00013698,2]
[339745984,1727931046885,-188.64431193,0.00013698,2]
[339745985,1727931046896,-501.42309158,0.00013698,2]
[339745986,1727931046906,-500.0,0.00013698,2]
[339745987,1727931046916,-500.0,0.00013698,2]
[339745988,1727931046926,-620.4,0.00013698,2]
[339745989,1727931046937,-502.51873963,0.00013698,2]
[339745990,1727931046946,-657.37,0.00013698,2]
[339745991,1727931046957,-500.0,0.00013698,2]
[339745992,1727931046968,-500.0,0.00013698,2]
[339745993,1727931046980,-616.36,0.00013698,2]
[339745994,1727931046991,-693.25,0.00013698,2]
[339745995,1727931047002,-500.0,0.00013698,2]
[339745996,1727931047012,-500.0,0.00013698,2]
[339745997,1727931047022,-544.4,0.00013698,2]
[339745998,1727931047032,-500.0,0.00013698,2]
[339745999,1727931047042,-500.0,0.00013698,2]
[339746000,1727931047052,-500.0,0.00013698,2]
[339746001,1727931047063,-500.0,0.00013698,2]
[339746002,1727931047073,-500.0,0.00013698,2]
[339746003,1727931047084,-760.87,0.00013698,2]
[339746004,1727931047094,-507.48414531,0.00013698,2]
[339746005,1727931047104,-500.0,0.00013698,2]
[339746006,1727931047115,-510.15554747,0.00013698,2]
[339746007,1727931047125,-500.0,0.00013698,2]
[339746008,1727931047135,-500.0,0.00013698,2]
[339746009,1727931047145,-500.0,0.00013698,2]
[339746010,1727931047155,-500.0,0.00013698,2]
[339746011,1727931047164,-329.10592182,0.00013698,2]
[339746012,1727931047174,-500.0,0.00013698,2]
[339746013,1727931047184,-500.74461163,0.00013698,2]
[339746014,1727931047194,-500.0,0.00013698,2]
[339746015,1727931047203,-500.0,0.00013698,2]
[339746016,1727931047213,-500.0,0.00013698,2]
[339746017,1727931047223,-500.0,0.00013698,2]
[339746018,1727931047233,-631.28,0.00013698,2]
[339746019,1727931047242,-586.89498287,0.00013698,2]
[339746020,1727931047252,-500.0,0.00013698,2]
[339746021,1727931047262,-500.0,0.00013698,2]
[339746022,1727931047272,-500.0,0.00013698,2]
[339746023,1727931047282,-1000.0,0.00013698,2]
[339746024,1727931047291,-603.35632666,0.00013698,2]
[339746025,1727931047301,-500.0,0.00013698,2]
[339746026,1727931047311,-500.0,0.00013698,2]
[339746027,1727931047321,-500.0,0.00013698,2]
[339746028,1727931047330,-663.24,0.00013698,2]
[339746029,1727931047340,-500.0,0.00013698,2]
[339746030,1727931047350,-500.0,0.00013698,2]
[339746031,1727931047360,-500.0,0.00013698,2]
[339746032,1727931047369,-507.51583152,0.00013698,2]
[339746033,1727931047379,-500.0,0.00013698,2]
[339746034,1727931047388,-500.0,0.00013698,2]
[339746035,1727931047398,-156.63543391,0.00013698,2]
[339746036,1727931047408,-743.16,0.00013698,2]
[339746037,1727931047418,-500.0,0.00013698,2]
[339746038,1727931047429,-500.0,0.00013698,2]
[339746039,1727931047438,-500.0,0.00013698,2]
[339746040,1727931047448,-500.0,0.00013698,2]
[339746041,1727931047458,-755.74,0.00013698,2]
[339746042,1727931047469,-501.41258368,0.00013698,2]
[339746043,1727931047479,-500.0,0.00013698,2]
[339746044,1727931047489,-500.0,0.00013698,2]
[339746045,1727931047499,-501.14312859,0.00013698,2]
[339746046,1727931047510,-500.0,0.00013698,2]
[339746047,1727931047521,-284.97864196,0.00013698,2]
[339746048,1727931047531,-500.0,0.00013698,2]
[339746049,1727931047540,-500.0,0.00013698,2]
[339746050,1727931047550,-500.0,0.00013698,2]
[339746051,1727931047563,-500.0,0.00013698,2]
[339746052,1727931047572,-919.14,0.00013698,2]
[339746053,1727931047582,-500.0,0.00013698,2]
[339746054,1727931047595,-527.94478923,0.00013698,2]
[339746055,1727931047607,-500.98987744,0.00013698,2]
[339746056,1727931047618,-500.0,0.00013698,2]
[339746057,1727931047629,-500.0,0.00013698,2]
[339746058,1727931047639,-500.0,0.00013698,2]
[339746059,1727931047649,-575.28,0.00013698,2]
[339746060,1727931047661,-500.0,0.00013698,2]
[339746061,1727931047672,-500.0,0.00013698,2]
[339746062,1727931047684,-500.0,0.00013698,2]
[339746063,1727931047695,-970.56,0.00013698,2]
[339746064,1727931047708,-500.0,0.00013698,2]
[339746065,1727931047719,-500.0,0.00013698,2]
[339746066,1727931047732,-500.0,0.00013698,2]
[339746067,1727931047743,-500.0,0.00013698,2]
[339746068,1727931047753,-500.0,0.00013698,2]
[339746069,1727931047765,-539.09866923,0.00013698,2]
[339746070,1727931047775,-500.0,0.00013698,2]
[339746071,1727931047787,-1079.25,0.00013698,2]
[339746072,1727931047799,-500.0,0.00013698,2]
[339746073,1727931047811,-500.0,0.00013698,2]
[339746074,1727931047822,-514.09377697,0.00013698,2]
[339746075,1727931047833,-500.0,0.00013698,2]
[339746076,1727931047844,-500.0,0.00013698,2]
[339746077,1727931047856,-500.88851412,0.00013698,2]
[339746078,1727931047867,-500.0,0.00013698,2]
[339746079,1727931047879,-500.0,0.00013698,2]
[339746080,1727931047892,-568.49,0.00013698,2]
[339746081,1727931047904,-500.0,0.00013698,2]
[339746082,1727931047915,-500.0,0.00013698,2]
[339746083,1727931047926,-500.0,0.00013698,2]
[339746084,1727931047938,-500.0,0.00013698,2]
[339746085,1727931047949,-500.0,0.00013698,2]
[339746086,1727931047961,-500.67397721,0.00013698,2]
[339746087,1727931047973,-500.0,0.00013698,2]
[339746088,1727931047983,-501.47465994,0.00013698,2]
[339746089,1727931047995,-500.0,0.00013698,2]
[339746090,1727931048008,-541.98073947,0.00013698,2]
[339746091,1727931048018,-500.0,0.00013698,2]
[339746092,1727931048028,-500.0,0.00013698,2]
[339746093,1727931048038,-500.0,0.00013698,2]
[339746094,1727931048048,-500.0,0.00013698,2]
[339746095,1727931048059,-500.0,0.00013698,2]
[339746096,1727931048069,-500.24714373,0.00013698,2]
[339746097,1727931048079,-500.0,0.00013698,2]
[339746098,1727931048090,-501.97698082,0.00013698,2]
[339746099,1727931048100,-612.2,0.00013698,2]
[339746100,1727931048110,-500.0,0.00013698,2]
[339746101,1727931048121,-726.61,0.00013698,2]
[339746102,1727931048131,-500.0,0.00013698,2]
[339746103,1727931048142,-500.0,0.00013698,2]
[339746104,1727931048152,-500.0,0.00013698,2]
[339746105,1727931048163,-500.0,0.00013698,2]
[339746106,1727931048172,-500.0,0.00013698,2]
[339746107,1727931048182,-925.38,0.00013698,2]
[339746108,1727931048191,-514.12516648,0.00013698,2]
[339746109,1727931048201,-617.82013953,0.00013698,2]
[339746110,1727931048211,-500.0,0.00013698,2]
[339746111,1727931048221,-500.0,0.00013698,2]
[339746112,1727931048231,-500.0,0.00013698,2]
[339746113,1727931048241,-500.0,0.00013698,2]
[339746114,1727931048251,-528.64,0.00013698,2]
[339746115,1727931048261,-500.0,0.00013698,2]
[339746116,1727931048271,-500.0,0.00013698,2]
[339746117,1727931048281,-500.0,0.00013698,2]
[339746118,1727931048291,-500.0,0.00013698,2]
[339746119,1727931048301,-500.0,0.00013698,2]
[339746120,1727931048311,-500.0,0.00013698,2]
[339746121,1727931048321,-500.0,0.00013698,2]
[339746122,1727931048331,-500.0,0.00013698,2]
[339746123,1727931048410,-1012.08,0.00013698,2]
[339746124,1727931048420,-570.66494701,0.00013698,2]
[339746125,1727931048442,-500.0,0.00013698,2]
[339746126,1727931048453,-500.0,0.00013698,2]
[339746127,1727931048463,-500.34730898,0.00013698,2]
[339746128,1727931048474,-504.2224431,0.00013698,2]
[339746129,1727931048484,-500.0,0.00013698,2]
[339746130,1727931048494,-2364.76,0.00013698,2]
[339746131,1727931048505,-500.0,0.00013698,2]
[339746132,1727931048517,-500.0,0.00013698,2]
[339746133,1727931048526,-500.0,0.00013698,2]
[339746134,1727931048535,-500.0,0.00013698,2]
[339746135,1727931048546,-502.50678653,0.00013698,2]
[339746136,1727931048556,-500.0,0.00013698,2]
[339746137,1727931048565,-239.46117416,0.00013698,2]
[339746138,1727931048575,-505.24530188,0.00013698,2]
[339746139,1727931048584,-546.35,0.00013698,2]
[339746140,1727931048594,-1112.07,0.00013698,2]
[339746141,1727931048604,-500.0,0.00013698,2]
[339746142,1727931048615,-500.0,0.00013698,2]
[339746143,1727931048625,-1029.34,0.00013698,2]
[339746144,1727931048634,-500.0,0.00013698,2]
[339746145,1727931048644,-500.0,0.00013698,2]
[339746146,1727931048653,-276.75764162,0.00013698,2]
[339746147,1727931048662,-500.0,0.00013698,2]
[339746148,1727931048672,-500.0,0.00013698,2]
[339746149,1727931048682,-553.48,0.00013698,2]
[339746150,1727931048691,-504.78295645,0.00013698,2]
[339746151,1727931048702,-500.0,0.00013698,2]
[339746152,1727931048711,-501.32018171,0.00013698,2]
[339746153,1727931048721,-500.0,0.00013698,2]
[339746154,1727931048731,-500.0,0.00013698,2]
[339746155,1727931048740,-514.76571973,0.00013698,2]
[339746156,1727931048750,-501.27906212,0.00013698,2]
[339746157,1727931048759,-500.0,0.00013698,2]
[339746158,1727931048768,-500.0,0.00013698,2]
[339746159,1727931048778,-698.36,0.00013698,2]
[339746160,1727931048787,-513.12063561,0.00013698,2]
[339746161,1727931048796,-500.0,0.00013698,2]
[339746162,1727931048807,-510.91,0.00013698,2]
[339746163,1727931048816,-500.0,0.00013698,2]
[339746164,1727931048825,-596.71,0.00013698,2]
[339746165,1727931048835,-500.0,0.00013698,2]
[339746166,1727931048845,-500.0,0.00013698,2]
[339746167,1727931048855,-500.0,0.00013698,2]
[339746168,1727931048866,-500.0,0.00013698,2]
[339746169,1727931048878,-500.0,0.00013698,2]
[339746170,1727931048887,-500.0,0.00013698,2]
[339746171,1727931048897,-500.0,0.00013698,2]
[339746172,1727931048907,-500.0,0.00013698,2]
[339746173,1727931048926,-500.0,0.00013698,2]
[339746174,1727931048936,-500.0,0.00013698,2]
[339746175,1727931048946,-500.0,0.00013698,2]
[339746176,1727931048957,-500.0,0.00013698,2]
[339746177,1727931048967,-500.0,0.00013698,2]
[339746178,1727931048977,-500.0,0.00013698,2]
[339746179,1727931048987,-508.60235891,0.00013698,2]
[339746180,1727931048996,-500.0,0.00013698,2]
[339746181,1727931049006,-500.0,0.00013698,2]
[339746182,1727931049017,-500.0,0.00013698,2]
[339746183,1727931049026,-503.92530129,0.00013698,2]
[339746184,1727931049036,-500.0,0.00013698,2]
[339746185,1727931049046,-500.0,0.00013698,2]
[339746186,1727931049060,-500.0,0.00013698,2]
[339746187,1727931049070,-500.0,0.00013698,2]
[339746188,1727931049080,-500.0,0.00013698,2]
[339746189,1727931049089,-500.0,0.00013698,2]
[339746190,1727931049099,-500.0,0.00013698,2]
[339746191,1727931049109,-500.0,0.00013698,2]
[339746192,1727931049119,-500.0,0.00013698,2]
[339746193,1727931049129,-500.0,0.00013698,2]
[339746194,1727931049139,-342.16437234,0.00013698,2]
[339746195,1727931049150,-500.0,0.00013698,2]
[339746196,1727931049159,-500.0,0.00013698,2]
[339746197,1727931049169,-500.0,0.00013698,2]
[339746198,1727931049179,-500.0,0.00013698,2]
[339746199,1727931049188,-391.5,0.00013698,2]
[339746200,1727931049198,-776.56,0.00013698,2]
[339746201,1727931049207,-944.52,0.00013698,2]
[339746202,1727931049218,-501.26492555,0.00013698,2]
[339746203,1727931049230,-515.7340591,0.00013698,2]
[339746204,1727931049241,-500.0,0.00013698,2]
[339746205,1727931049251,-500.0,0.00013698,2]
[339746206,1727931049262,-500.0,0.00013698,2]
[339746207,1727931049273,-500.0,0.00013698,2]
[339746208,1727931049283,-525.44,0.00013698,2]
[339746209,1727931049293,-500.0,0.00013698,2]
[339746210,1727931049302,-500.0,0.00013698,2]
[339746211,1727931049313,-500.0,0.00013698,2]
[339746212,1727931049323,-722.28,0.00013698,2]
[339746213,1727931049333,-500.0,0.00013698,2]
[339746214,1727931049343,-500.0,0.00013698,2]
[339746215,1727931049352,-732.7,0.00013698,2]
[339746216,1727931049362,-500.0,0.00013698,2]
[339746217,1727931049372,-500.0,0.00013698,2]
[339746218,1727931049382,-500.65304104,0.00013698,2]
[339746219,1727931049392,-500.68993851,0.00013698,2]
[339746220,1727931049402,-500.23550126,0.00013698,2]
[339746221,1727931049412,-500.0,0.00013698,2]
[339746222,1727931049423,-911.33,0.00013698,2]
[339746223,1727931049433,-500.0,0.00013698,2]
[339746224,1727931049443,-500.0,0.00013698,2]
[339746225,1727931049454,-500.0,0.00013698,2]
[339746226,1727931049464,-505.64895886,0.00013698,2]
[339746227,1727931049474,-511.30456004,0.00013698,2]
[339746228,1727931049485,-500.0,0.00013698,2]
[339746229,1727931049495,-500.0,0.00013698,2]
[339746230,1727931049505,-500.0,0.00013698,2]
[339746231,1727931049518,-635.46,0.00013698,2]
[339746232,1727931049529,-500.0,0.00013698,2]
[339746233,1727931049539,-500.0,0.00013698,2]
[339746234,1727931049551,-500.0,0.00013698,2]
[339746235,1727931049560,-500.0,0.00013698,2]
[339746236,1727931049571,-500.0,0.00013698,2]
[339746237,1727931049580,-503.45,0.00013698,2]
[339746238,1727931049592,-500.0,0.00013698,2]
[339746239,1727931049602,-506.52023537,0.00013698,2]
[339746240,1727931049612,-624.05529106,0.00013698,2]
[339746241,1727931049622,-500.0,0.00013698,2]
[339746242,1727931049632,-217.95187061,0.00013698,2]
[339746243,1727931049643,-500.0,0.00013698,2]
[339746244,1727931049653,-500.0,0.00013698,2]
[339746245,1727931049663,-500.0,0.00013698,2]
[339746246,1727931049674,-500.0,0.00013698,2]
[339746247,1727931049684,-500.0,0.00013698,2]
[339746248,1727931049694,-500.0,0.00013698,2]
[339746249,1727931049704,-508.47739868,0.00013698,2]
[339746250,1727931049714,-500.0,0.00013698,2]
[339746251,1727931049724,-500.0,0.00013698,2]
[339746252,1727931049734,-497.37875101,0.00013698,2]
[339746253,1727931050084,-2.62124899,0.00013698,2]
[339746254,1727931050095,-500.0,0.00013698,2]
[339746255,1727931050107,-500.0,0.00013698,2]
[339746256,1727931050119,-500.0,0.00013698,2]
[339746257,1727931050130,-500.0,0.00013698,2]
[339746258,1727931050142,-646.43,0.00013698,2]
[339746259,1727931050155,-665.16,0.00013698,2]
[339746260,1727931050166,-509.16812458,0.00013698,2]
[339746261,1727931050176,-500.0,0.00013698,2]
[339746262,1727931050186,-500.0,0.00013698,2]
[339746263,1727931050195,-676.15,0.00013698,2]
[339746264,1727931050205,-500.0,0.00013698,2]
[339746265,1727931050215,-519.42,0.00013698,2]
[339746266,1727931050226,-575.5664198,0.00013698,2]
[339746267,1727931050251,-88.6135802,0.00013698,2]
[339746268,1727931050264,-191.17920141,0.00013698,2]
[339746269,1727931050515,-113.50876345,0.00013698,2]
[339746270,1727931050819,-328.74179708,0.00013673,2]
[339746271,1727931050829,-219.95203514,0.00013698,2]
[339746272,1727931050839,-500.6684911,0.00013698,2]
[339746273,1727931050848,-500.0,0.00013698,2]
[339746274,1727931050858,-500.0,0.00013698,2]
[339746275,1727931050871,-500.0,0.00013698,2]
[339746276,1727931050881,-744.56,0.00013698,2]
[339746277,1727931050891,-1070.1,0.00013698,2]
[339746278,1727931050901,-500.0,0.00013698,2]
[339746279,1727931050911,-500.0,0.00013698,2]
[339746280,1727931050926,-508.28178845,0.00013698,2]
[339746281,1727931050936,-500.72805559,0.00013698,2]
[339746282,1727931050945,-510.25030488,0.00013698,2]
[339746283,1727931050955,-500.0,0.00013698,2]
[339746284,1727931050965,-636.69,0.00013698,2]
[339746285,1727931050975,-504.76639552,0.00013698,2]
[339746286,1727931050985,-500.0,0.00013698,2]
[339746287,1727931050994,-603.57,0.00013698,2]
[339746288,1727931051004,-511.01,0.00013698,2]
[339746289,1727931051013,-507.58068669,0.00013698,2]
[339746290,1727931051024,-500.0,0.00013698,2]
[339746291,1727931051033,-198.46981267,0.00013698,2]
[339746292,1727931051965,-25.09538716,0.00013627,2]
[339746296,1727931803620,163.0,0.000209,120]
[339746297,1727932045194,-300.0,0.0001228,2]
[339746298,1727932045219,-13697.66052897,0.00012281,2]
[339746299,1727932151165,-4251.43595963,0.00012281,2]
[339746300,1727932151193,-179.400748,0.00012376,2]
[339746301,1727932151218,-287.4637234,0.00012471,2]
[339746303,1727932198885,159.32854,0.00012485,2]
[339746311,1727932232672,-551.318918,0.00012603,2]
[339746312,1727932232684,-159.32854,0.00012615,2]
[339746313,1727932232694,-159.32854,0.00012745,2]
[339746314,1727932232704,-159.32854,0.00012876,2]
[339746315,1727932232715,-159.32854,0.00013006,2]
[339746317,1727932232724,-515.441575,0.0001311,2]
[339746319,1727932232735,-159.32854,0.00013136,2]
[339746321,1727932232745,-3217.08388917,0.00013432,2]
[339746478,1727932243683,-600.0,0.00013476,2]
[339746479,1727932243694,-300.0,0.00013505,2]
[339746480,1727932243706,-975.564182,0.00013506,2]
[339746481,1727932243717,-1463.346273,0.00013506,2]
[339746482,1727932243728,-163.821943,0.00013506,2]
[339746483,1727932243741,-98.5615031,0.00013578,2]
[339746491,1727932246528,-70.46904527,0.00013578,2]
[339746492,1727932246538,-169.03054837,0.00013583,2]
[339746493,1727932246547,-169.03054837,0.00013588,2]
[339746494,1727932246556,-1005.99151042,0.00013598,2]
[339746495,1727932246566,-1000.0,0.00013598,2]
[339746496,1727932246576,-972.20874446,0.00013616,2]
[339746497,1727932246586,-150.0,0.00013668,2]
[339746498,1727932246595,-500.4363716,0.00013673,2]
[339746499,1727932246605,-500.0,0.00013673,2]
[339746500,1727932246615,-975.564182,0.00013674,2]
[339746501,1727932246624,-1463.346273,0.00013674,2]
[339746502,1727932246634,-500.71888085,0.00013677,2]
[339746503,1727932246644,-46866.32229,0.00013677,2]
[339746504,1727932246654,-35279.55788793,0.00013678,2]
[339746505,1727932254683,500.0,0.00011164,2]
[339746507,1727932866128,171.0,0.000209,120]
[339746509,1727933132136,-454.71468607,0.00012603,2]
[339746510,1727933144109,-168.49785993,0.00012603,2]
[339746511,1727933144136,-163.634031,0.00012707,2]
[339746512,1727933144161,-95.4365706,0.00013,4]
[339746515,1727933251132,-131.4368131,0.00013,4]
[339746516,1727933251169,-5279.17464948,0.00013223,2]
[339746517,1727933251192,-574.37761824,0.00013598,2]
[339746518,1727933251215,-761.43098725,0.00013598,2]
[339746519,1727933251240,-300.0,0.00013599,2]
[339746520,1727933251262,-436.99981871,0.000136,2]
[339746521,1727933283865,1671.7257578,0.00010205,2]
[339746523,1727933346515,160.0,0.000209,120]
[339746524,1727933415675,1671.7257578,0.00010205,2]
[339746525,1727933415696,839.60339072,0.00010205,2]
[339746577,1727933431667,-326.55647037,0.00012603,2]
[339746596,1727933437777,-197.19650163,0.00012603,2]
[339746597,1727933437787,-414.73813,0.00013506,2]
[339746598,1727933437797,-300.0,0.00013599,2]
[339746599,1727933437807,-10540.00018129,0.000136,2]
[339746600,1727933437817,-502.98971341,0.00013673,2]
[339746601,1727933437827,-500.0,0.00013673,2]
[339746602,1727933437838,-500.0,0.00013673,2]
[339746603,1727933437849,-501.34667769,0.00013673,2]
[339746604,1727933437858,-501.1143014,0.00013673,2]
[339746605,1727933437866,-500.0,0.00013673,2]
[339746606,1727933437876,-500.0,0.00013673,2]
[339746607,1727933437885,-625.90537703,0.00013673,2]
[339746608,1727933437895,-500.0,0.00013673,2]
[339746609,1727933437905,-500.0,0.00013673,2]
[339746610,1727933437914,-500.0,0.00013673,2]
[339746611,1727933437924,-500.0,0.00013673,2]
[339746612,1727933437933,-414.73813,0.00013674,2]
[339746613,1727933437944,-333.81258724,0.00013678,2]
[339746614,1727933437955,-16844.00071264,0.00013678,2]
[339746615,1727933437965,-11572.06626234,0.00013678,2]
[339746616,1727933437976,-77315.74890486,0.00013678,2]
[339746617,1727933437994,-52058.44225214,0.00013678,2]
[339746618,1727933438006,-52923.0067667,0.00013678,2]
[339746619,1727933438016,-55446.0819243,0.00013678,2]
[339746620,1727933438027,-22681.2886143,0.00013678,2]
[339746621,1727933438037,-151.0,0.00013688,2]
[339746622,1727933438051,-151.0,0.00013688,2]
[339746623,1727933438061,-151.0,0.00013688,2]
[339746624,1727933438071,-36964.0546162,0.00013688,2]
[339746625,1727933438083,-68043.8658429,0.00013688,2]
[339746626,1727933438095,-7560.4295381,0.00013689,2]
[339746627,1727933438105,-177.533,0.00013689,2]
[339746628,1727933438114,-150.0,0.00013689,2]
[339746629,1727933438123,-150.01,0.00013697,2]
[339746630,1727933438319,-1875.85866984,0.00013697,2]
[339746631,1727933438330,-500.0,0.00013698,2]
[339746632,1727933438341,-500.0,0.00013698,2]
[339746633,1727933438350,-510.91,0.00013698,2]
[339746634,1727933438360,-500.0,0.00013698,2]
[339746635,1727933438371,-500.0,0.00013698,2]
[339746636,1727933438381,-500.0,0.00013698,2]
[339746637,1727933438392,-500.0,0.00013698,2]
[339746638,1727933438401,-500.0,0.00013698,2]
[339746639,1727933438411,-500.0,0.00013698,2]
[339746640,1727933438420,-500.0,0.00013698,2]
[339746641,1727933438429,-500.0,0.00013698,2]
[339746642,1727933438439,-634.76,0.00013698,2]
[339746643,1727933438450,-500.0,0.00013698,2]
[339746644,1727933438459,-500.331281,0.00013698,2]
[339746645,1727933438469,-500.0,0.00013698,2]
[339746646,1727933438478,-500.0,0.00013698,2]
[339746647,1727933438487,-572.84167691,0.00013698,2]
[339746648,1727933438496,-513.54,0.00013698,2]
[339746649,1727933438505,-500.0,0.00013698,2]
[339746650,1727933438517,-632.89,0.00013698,2]
[339746651,1727933438528,-500.50724954,0.00013698,2]
[339746652,1727933438537,-523.6498659,0.00013698,2]
[339746653,1727933438550,-500.0,0.00013698,2]
[339746654,1727933438559,-500.0,0.00013698,2]
[339746655,1727933438569,-500.0,0.00013698,2]
[339746656,1727933438579,-501.95630672,0.00013698,2]
[339746657,1727933438588,-500.0,0.00013698,2]
[339746658,1727933438600,-501.44361129,0.00013698,2]
[339746659,1727933438611,-672.28,0.00013698,2]
[339746660,1727933438620,-500.0,0.00013698,2]
[339746661,1727933438629,-500.0,0.00013698,2]
[339746662,1727933438638,-500.0,0.00013698,2]
[339746663,1727933438648,-500.24175017,0.00013698,2]
[339746664,1727933438659,-500.0,0.00013698,2]
[339746665,1727933438668,-500.0,0.00013698,2]
[339746666,1727933438678,-500.0,0.00013698,2]
[339746667,1727933438687,-573.53,0.00013698,2]
[339746668,1727933438697,-500.0,0.00013698,2]
[339746669,1727933438706,-500.0,0.00013698,2]
[339746670,1727933438715,-540.41286695,0.00013698,2]
[339746671,1727933438724,-500.0,0.00013698,2]
[339746672,1727933438734,-792.32,0.00013698,2]
[339746673,1727933438743,-500.0,0.00013698,2]
[339746674,1727933438751,-500.0,0.00013698,2]
[339746675,1727933438761,-976.79,0.00013698,2]
[339746676,1727933438770,-581.82,0.00013698,2]
[339746677,1727933438779,-500.0,0.00013698,2]
[339746678,1727933438789,-500.0,0.00013698,2]
[339746679,1727933438800,-500.0,0.00013698,2]
[339746680,1727933438809,-500.0,0.00013698,2]
[339746681,1727933438819,-500.0,0.00013698,2]
[339746682,1727933438828,-502.93607119,0.00013698,2]
[339746683,1727933438837,-500.0,0.00013698,2]
[339746684,1727933438847,-500.0,0.00013698,2]
[339746685,1727933438856,-500.0,0.00013698,2]
[339746686,1727933438865,-502.08923459,0.00013698,2]
[339746687,1727933438875,-577.47,0.00013698,2]
[339746688,1727933438884,-245.51567987,0.00013698,2]
[339746689,1727933438893,-500.0,0.00013698,2]
[339746690,1727933438903,-500.0,0.00013698,2]
[339746691,1727933438912,-500.0,0.00013698,5]
[339746692,1727933438921,-587.28,0.00013698,2]
[339746693,1727933438930,-489.61766628,0.00013698,2]
[339746694,1727933438940,-500.0,0.00013698,2]
[339746695,1727933438949,-500.0,0.00013698,2]
[339746696,1727933438958,-500.0,0.00013698,2]
[339746697,1727933438967,-809.42,0.00013698,2]
[339746698,1727933438976,-500.35684235,0.00013698,2]
[339746699,1727933438986,-534.63667688,0.00013698,2]
[339746700,1727933438995,-500.0,0.00013698,2]
[339746701,1727933439005,-500.0,0.00013698,2]
[339746702,1727933439014,-500.0,0.00013698,2]
[339746703,1727933439023,-502.79807275,0.00013698,2]
[339746704,1727933439032,-500.0,0.00013698,2]
[339746705,1727933439042,-188.64431193,0.00013698,2]
[339746706,1727933439055,-500.0,0.00013698,2]
[339746707,1727933439064,-500.0,0.00013698,2]
[339746708,1727933439078,-504.2442588,0.00013698,2]